bitfinex-derivatives/quotes_ETHF0:USTF0_20250428
["timestamp","ask_amount","ask_price","bid_price","bid_amount"]
[1745800233823,11.31917277,1780.7,1780.5,6.07435]
[1745800234020,0.42501581,1780.6,1780.5,6.07435]
[1745800235025,0.42501581,1780.6,1780.5,11.07435]
[1745800235225,9.21516992,1780.8,1780.5,9.9515]
[1745800235530,9.21516992,1780.8,1780.6,3.2078]
[1745800235829,10.33789992,1780.8,1780.6,3.2078]
[1745800236030,9.21516992,1780.8,1780.6,3.2078]
[1745800236333,10.33794992,1780.8,1780.5,4.9515]
[1745800236630,1.12287,1780.6,1780.4,5.088]
[1745800236828,10.0152,1780.5,1780.4,5.088]
[1745800237026,11.13812,1780.5,1780.4,5.088]
[1745800237231,19.34592,1780.5,1780.4,5.088]
[1745800237532,14.34592,1780.5,1780.4,5.088]
[1745800239630,1.1231,1780.2,1780.1,6.0248]
[1745800239834,3.2078,1780.2,1780.0,0.1404]
[1745800240029,9.6367,1780.1,1779.5,5.17276915]
[1745800240332,4.33118,1779.8,1779.5,5.075]
[1745800240535,14.6934,1779.7,1779.5,5.075]
[1745800240827,3.2078,1779.6,1779.5,5.075]
[1745800241032,12.8445,1779.6,1779.5,5.075]
[1745800241832,17.8445,1779.6,1779.2,5.076]
[1745800242028,3.2078,1779.4,1779.2,5.076]
[1745800242230,3.2078,1779.5,1779.2,5.076]
[1745800242421,9.21516992,1780.7,1779.6,5.61714]
[1745800242620,9.21516992,1780.7,1780.6,3.2078]
[1745800242830,9.21516992,1780.7,1780.6,6.19885]
[1745800243127,9.6367,1781.0,1780.6,6.19885]
[1745800243128,9.6367,1781.0,1780.6,5.076]
[1745800243328,9.6367,1781.0,1780.8,1.1227]
[1745800243529,9.6367,1781.0,1780.9,9.6437]
[1745800243731,11.0582039,1781.1,1781.0,1.1226]
[1745800243941,3.65156884,1781.2,1781.1,1.12254]
[1745800244128,3.65156884,1781.2,1781.1,3.2078]
[1745800244328,3.65156884,1781.2,1781.1,4.33034]
[1745800244532,7.35320467,1781.3,1781.2,1.12247]
[1745800244733,7.35320467,1781.3,1781.2,10.76617]
[1745800244932,7.35320467,1781.3,1781.2,9.6437]
[1745800245234,7.35320467,1781.3,1781.2,13.4457]
[1745800245730,7.35320467,1781.3,1781.2,19.56817]
[1745800245939,9.57,1781.9,1781.5,1.12228]
[1745800246132,9.57,1781.9,1781.6,15.1981]
[1745800246332,9.57,1781.9,1781.7,10.1231]
[1745800247030,3.65156884,1782.0,1781.7,13.3309]
[1745800247237,3.65156884,1782.0,1781.9,3.2078]
[1745800247638,6.11426,1782.5,1781.9,3.2078]
[1745800247837,10.4985,1782.3,1782.0,15.1971]
[1745800248329,10.4985,1782.3,1782.0,5.074]
[1745800248735,11.62031,1782.3,1782.0,5.074]
[1745800249129,10.4985,1782.3,1782.0,5.074]
[1745800249427,4.32967,1782.2,1782.0,5.074]
[1745800249626,10.1821,1782.1,1782.0,5.074]
[1745800250336,16.30401,1782.1,1781.8,3.2078]
[1745800250535,11.30401,1782.1,1781.8,3.2078]
[1745800250841,11.30401,1782.1,1781.8,4.32987]
[1745800251036,10.1821,1782.1,1782.0,1.12197]
[1745800251230,10.1821,1782.1,1781.9,1.122]
[1745800251532,10.1821,1782.1,1782.0,1.12197]
[1745800252037,10.1821,1782.1,1781.8,14.71013]
[1745800252438,10.1821,1782.1,1781.9,1.12201]
[1745800253236,11.30401,1782.1,1781.8,14.71015]
[1745800254234,11.30401,1782.1,1781.9,1.12203]
[1745800254436,11.30401,1782.1,1781.8,14.71016]
[1745800254741,11.30401,1782.1,1781.9,1.12203]
[1745800255035,0.00848702,1781.9,1781.8,13.5881]
[1745800255536,0.00848702,1781.9,1781.7,5.074]
[1745800255737,16.22214702,1781.9,1781.7,5.074]
[1745800256846,15.10008702,1781.9,1781.7,5.074]
[1745800257044,15.10008702,1781.9,1781.7,15.2217]
[1745800257232,15.10008702,1781.9,1781.7,15.5023]
[1745800257542,16.22214702,1781.9,1781.7,15.5023]
[1745800258743,1.1221,1781.8,1781.7,15.5023]
[1745800259138,11.577,1781.8,1781.7,15.5023]
[1745800259338,10.4549,1781.8,1781.7,15.5023]
[1745800259536,4.98638702,1781.9,1781.7,15.5023]
[1745800259739,1.13052702,1781.9,1781.8,3.2078]
[1745800259939,0.00848702,1781.9,1781.8,3.2078]
[1745800260138,1.13051702,1781.9,1781.8,3.2078]
[1745800260638,1.1221,1781.8,1781.7,1e-05]
[1745800260843,1.12225,1781.6,1781.4,5.072]
[1745800261140,1.12225,1781.6,1781.5,9.7223]
[1745800261340,13.6627,1781.8,1781.5,9.7223]
[1745800261541,3.2078,1781.8,1781.6,1.12221]
[1745800261736,1.13055702,1781.9,1781.6,1.12221]
[1745800261737,0.00848702,1781.9,1781.8,1.1221]
[1745800261940,0.00848702,1781.9,1781.8,9.4019]
[1745800262147,0.00848702,1781.9,1781.8,14.4019]
[1745800262337,0.00848702,1781.9,1781.8,9.4019]
[1745800262537,0.00848702,1781.9,1781.8,8.2798]
[1745800262835,0.00848702,1781.9,1781.8,9.4019]
[1745800263337,0.00848702,1781.9,1781.8,8.2798]
[1745800263537,0.00848702,1781.9,1781.8,9.4019]
[1745800263834,0.00848702,1781.9,1781.8,8.2798]
[1745800264148,0.00848702,1781.9,1781.5,18.2876]
[1745800264544,1.12215,1781.8,1781.6,9.6556]
[1745800264747,10.4871,1781.7,1781.6,9.6556]
[1745800265044,0.00848702,1781.9,1781.6,9.6556]
[1745800265548,0.00848702,1781.9,1781.6,10.77779]
[1745800266146,0.00848702,1781.9,1781.8,4.3299]
[1745800266639,0.00848702,1781.9,1781.8,9.3299]
[1745800266838,0.00848702,1781.9,1781.8,3.2078]
[1745800267041,0.00848702,1781.9,1781.8,9.3299]
[1745800267440,0.00848702,1781.9,1781.8,4.3299]
[1745800267645,8.3586,1782.7,1782.2,1.12182]
[1745800267840,1.12172,1782.4,1782.3,15.307]
[1745800268146,1.12169,1782.5,1782.3,15.307]
[1745800268340,1.12163,1782.6,1782.3,15.307]
[1745800268541,9.9321,1782.6,1782.4,10.248]
[1745800269249,1.12166,1782.5,1782.4,10.248]
[1745800269853,9.48015,1782.7,1782.4,11.36969]
[1745800270257,8.3586,1782.7,1782.4,10.248]
[1745800270551,1.12163,1782.6,1782.4,10.248]
[1745800270753,10.0183,1782.6,1782.4,11.36971]
[1745800271147,11.13991,1782.6,1782.4,11.36971]
[1745800271351,8.3586,1782.7,1782.5,1.12165]
[1745800271550,9.48013,1782.7,1782.6,10.3419]
[1745800271950,6.27233,1782.7,1782.6,10.3419]
[1745800273064,5.1508,1782.7,1782.6,11.46349]
[1745800274060,11.13981,1782.8,1782.6,10.3419]
[1745800274061,10.0183,1782.8,1782.6,10.3419]
[1745800274259,8.4135,1783.1,1782.7,1.12151]
[1745800274462,1.12141,1782.9,1782.8,9.9521]
[1745800277857,1.12172,1782.4,1782.3,5.1972]
[1745800278160,1.12172,1782.4,1782.3,15.4111]
[1745800278363,3.2078,1783.0,1782.6,1.12157]
[1745800278556,3.2078,1783.0,1782.6,5.057]
[1745800278757,1.12153,1782.7,1782.6,5.057]
[1745800279362,11.58803,1782.7,1782.6,5.057]
[1745800281154,1.12153,1782.7,1782.6,5.057]
[1745800281863,10.79363,1782.7,1782.6,5.057]
[1745800283462,3.2078,1783.5,1782.7,2.80374]
[1745800283664,1.12109,1783.4,1783.2,3.2078]
[1745800283965,3.2078,1783.5,1783.3,14.5793]
[1745800284268,1.12109,1783.4,1783.3,5.057]
[1745800284668,4.32887,1783.5,1783.3,5.057]
[1745800285067,6.00034,1783.7,1783.4,9.5223]
[1745800285262,1.12094,1783.7,1783.4,10.64336]
[1745800285464,4.9129,1783.8,1783.4,9.5223]
[1745800285663,6.03377,1783.8,1783.6,1.12096]
[1745800285859,4.9129,1783.8,1783.7,9.6002]
[1745800286064,4.32862,1783.9,1783.7,9.6002]
[1745800286263,4.32862,1783.9,1783.7,10.72109]
[1745800286568,3.2078,1783.9,1783.8,1.12084]
[1745800286970,3.2078,1784.3,1783.8,8.2078]
[1745800287165,1.12055,1784.3,1783.9,9.6002]
[1745800287464,7.9879,1784.6,1783.9,9.6002]
[1745800287660,3.2078,1784.4,1783.9,10.72097]
[1745800287861,4.3283,1784.4,1783.9,9.6002]
[1745800288164,3.2078,1784.4,1784.0,1.12067]
[1745800288465,1.12054,1784.3,1784.1,14.6562]
[1745800288768,1.12059,1784.2,1784.1,5.056]
[1745800288968,1.12078,1783.9,1783.8,5.056]
[1745800289167,5.2311,1784.1,1783.8,14.9673]
[1745800289363,3.2078,1784.2,1783.9,9.9113]
[1745800289564,1.12065,1784.1,1783.9,9.9113]
[1745800289759,1.12068,1784.1,1783.9,9.9113]
[1745800289959,3.2078,1784.2,1783.9,9.9113]
[1745800290167,8.4389,1784.6,1783.9,9.9113]
[1745800290360,1.12056,1784.3,1783.9,9.9113]
[1745800290672,3.2078,1784.4,1783.9,9.9113]
[1745800290970,1.12071,1784.0,1783.9,9.9113]
[1745800291176,3.2078,1784.4,1783.9,9.9113]
[1745800291366,1.12052,1784.3,1784.0,4.32851]
[1745800291668,1.12057,1784.3,1784.1,9.9113]
[1745800291869,1.12057,1784.3,1784.2,5.055]
[1745800292067,0.1401,1784.3,1784.2,6.17556]
[1745800292370,0.1401,1784.3,1784.2,11.33576]
[1745800292570,0.1401,1784.3,1784.2,16.33576]
[1745800292963,0.1401,1784.3,1784.2,11.33576]
[1745800293372,3.2078,1785.0,1784.2,21.22436]
[1745800293674,4.32789,1785.0,1784.6,4.32809]
[1745800293862,3.2078,1785.0,1784.7,14.844]
[1745800294066,1.12018,1784.9,1784.7,14.844]
[1745800294365,3.2078,1785.0,1784.7,18.0518]
[1745800294568,1.12017,1784.9,1784.7,14.844]
[1745800294868,1.12021,1784.8,1784.7,14.844]
[1745800295275,1.12021,1784.8,1784.7,5.054]
[1745800295876,1.1204,1784.5,1784.4,5.053]
[1745800296168,1.1204,1784.5,1784.4,14.604]
[1745800296369,1.12027,1784.8,1784.4,14.604]
[1745800296574,1.12027,1784.8,1784.5,4.32819]
[1745800296769,1.12027,1784.8,1784.6,9.551]
[1745800297071,1.12027,1784.7,1784.6,9.551]
[1745800297370,2.80085,1784.6,1784.0,3.2078]
[1745800297579,1.12059,1784.2,1784.1,5.053]
[1745800298367,4.32839,1784.2,1784.1,5.053]
[1745800299266,3.2078,1784.2,1783.8,15.3125]
[1745800299472,1.12078,1783.9,1783.8,15.3125]
[1745800299666,1.12076,1784.0,1783.8,15.3125]
[1745800299871,1.12076,1784.0,1783.9,10.2725]
[1745800300075,1.12078,1783.9,1783.8,5.04]
[1745800300461,1.12075,1784.0,1783.8,15.3125]
[1745800300661,3.2078,1784.2,1783.9,11.39326]
[1745800300864,1.12067,1784.1,1783.9,10.2725]
[1745800301368,1.12071,1784.0,1783.9,10.2725]
[1745800301869,1.12078,1783.9,1783.8,5.04]
[1745800302075,11.18448,1783.9,1783.8,5.04]
[1745800302674,15.0637,1783.9,1783.1,5.04]
[1745800302972,3.2078,1783.6,1783.1,15.0546]
[1745800303176,1.12115,1783.3,1783.2,10.0146]
[1745800303771,1.12113,1783.4,1783.2,13.2224]
[1745800304172,1.12107,1783.5,1783.2,14.34358]
[1745800304569,3.2078,1783.6,1783.2,13.2224]
[1745800304775,1.12115,1783.3,1783.2,13.2224]
[1745800304975,2.80182,1784.0,1783.2,13.2224]
[1745800305282,6.00979,1783.9,1783.2,13.2224]
[1745800305474,1.12102,1783.6,1783.2,14.34357]
[1745800306171,1.12103,1783.5,1783.2,13.2224]
[1745800306378,1.12101,1783.6,1783.2,14.34358]
[1745800306576,1.12086,1783.8,1783.5,1.12102]
[1745800306772,3.2078,1783.9,1783.6,20.3057]
[1745800306970,3.2078,1783.9,1783.7,10.3628]
[1745800307379,1.12084,1783.8,1783.7,10.3628]
[1745800307677,3.2078,1783.9,1783.7,10.3628]
[1745800307882,4.32858,1783.9,1783.7,10.3628]
[1745800308081,10.94352,1784.2,1783.8,4.32864]
[1745800308378,9.8229,1784.2,1783.9,15.5319]
[1745800308576,1.12065,1784.1,1783.9,15.5319]
[1745800308777,10.94352,1784.2,1783.9,15.5319]
[1745800309271,10.94352,1784.2,1783.9,16.65266]
[1745800309481,9.8229,1784.2,1783.9,16.65265]
[1745800309684,10.9435,1784.2,1783.9,15.5319]
[1745800309979,9.8229,1784.2,1783.9,16.65267]
[1745800310779,3.2078,1784.3,1783.9,15.5319]
[1745800311081,13.4902,1784.3,1784.0,1.12068]
[1745800311279,13.4902,1784.3,1784.1,11.47085]
[1745800311482,13.4902,1784.3,1784.1,10.3502]
[1745800311785,14.61074,1784.3,1784.1,10.3502]
[1745800311987,13.4902,1784.3,1784.1,10.3502]
[1745800312484,13.4902,1784.3,1784.1,11.47082]
[1745800313379,1.12067,1784.1,1783.9,5.041]
[1745800313586,13.4902,1784.3,1784.0,1.12068]
[1745800314073,1.12061,1784.2,1784.0,9.6475]
[1745800314277,10.1094,1784.1,1784.0,10.76821]
[1745800317380,11.23005,1784.1,1784.0,10.76821]
[1745800317578,10.1094,1784.1,1784.0,10.76821]
[1745800318278,10.1094,1784.1,1783.9,5.041]
[1745800318485,1.12084,1783.8,1783.7,10.2453]
[1745800318687,1.12096,1783.6,1783.5,5.04]
[1745800318882,1.12096,1783.6,1783.5,6.16103]
[1745800319189,4.8266,1783.8,1783.7,1.1209]
[1745800319491,4.8266,1783.8,1783.6,10.74593]
[1745800319688,1.1209,1783.7,1783.6,9.625]
[1745800320184,10.9632,1783.7,1783.6,9.625]
[1745800320577,1.12096,1783.6,1783.5,5.04]
[1745800321083,1.12096,1783.6,1783.5,6.16103]
[1745800321280,1.12096,1783.6,1783.5,5.04]
[1745800321683,10.96325,1783.7,1783.5,6.161]
[1745800321988,9.8423,1783.7,1783.5,5.04]
[1745800322192,4.32876,1783.7,1783.5,6.16101]
[1745800322386,4.32876,1783.7,1783.5,6.16098]
[1745800322585,1.12096,1783.6,1783.5,5.04]
[1745800322785,10.386,1783.6,1783.5,15.6642]
[1745800322993,11.50696,1783.6,1783.5,5.04]
[1745800323384,3.2078,1783.7,1783.6,1.12096]
[1745800323785,3.2078,1783.7,1783.6,10.62416]
[1745800324888,4.3287,1783.7,1783.6,9.5032]
[1745800325091,1.12096,1783.6,1783.5,5.04]
[1745800325489,10.72076,1783.6,1783.5,5.04]
[1745800328786,9.5998,1783.6,1783.5,6.16103]
[1745800329094,9.5998,1783.6,1783.5,5.04]
[1745800329295,9.5998,1783.6,1783.5,6.16103]
[1745800329597,10.72076,1783.6,1783.5,5.04]
[1745800329984,10.72076,1783.6,1783.5,6.16103]
[1745800330185,4.32875,1783.7,1783.5,5.04]
[1745800330492,3.2078,1783.7,1783.6,11.47276]
[1745800330994,4.8146,1784.1,1783.8,1.12082]
[1745800331195,1.12075,1784.0,1783.9,10.3518]
[1745800331586,15.6748,1784.1,1783.9,11.47258]
[1745800331782,14.5541,1784.1,1784.0,1.12071]
[1745800331982,4.32842,1784.2,1783.9,15.3808]
[1745800332187,14.72292,1784.2,1784.0,1.1207]
[1745800332388,13.6023,1784.2,1784.1,11.04565]
[1745800332988,3.2078,1784.2,1784.1,11.04565]
[1745800333194,4.32839,1784.2,1784.1,9.925]
[1745800333888,4.33292794,1784.2,1784.1,9.925]
[1745800334590,1.12512794,1784.2,1784.1,9.925]
[1745800334992,11.19172794,1784.2,1784.1,9.925]
[1745800335294,1.12071,1784.0,1783.9,5.029]
[1745800336599,5.0,1784.0,1783.5,5.029]
[1745800336802,1.12095,1783.7,1783.6,1.12096]
[1745800337003,1.12095,1783.7,1783.6,9.8715]
[1745800337196,18.1638,1783.9,1783.8,1.12084]
[1745800337497,18.1638,1783.9,1783.6,9.8715]
[1745800337498,13.2744,1783.9,1783.6,9.8715]
[1745800337898,16.49667,1784.1,1783.7,3.2078]
[1745800338203,1.12071,1784.0,1783.8,11.19179]
[1745800338390,1.12078,1783.9,1783.8,10.071]
[1745800339294,15.376,1784.1,1783.6,9.8735]
[1745800339492,11.60748,1783.8,1783.6,21.06546]
[1745800339695,1.12082,1783.9,1783.7,1.1209]
[1745800339905,1.12084,1783.8,1783.7,10.071]
[1745800340103,4.32856,1784.0,1783.8,1.12082]
[1745800340300,3.2078,1784.0,1783.9,11.19178]
[1745800340611,3.2078,1784.0,1783.9,16.22078]
[1745800341105,3.2078,1784.7,1783.9,20.1]
[1745800341297,3.2078,1784.7,1784.5,1.12038]
[1745800341499,3.2078,1784.7,1784.6,11.38774]
[1745800341802,0.02539,1785.1,1784.7,1.12025]
[1745800341803,1.1201,1785.0,1784.7,1.12025]
[1745800342002,1.1201,1785.0,1784.8,15.2964]
[1745800342211,9.9081,1785.0,1784.8,15.2964]
[1745800342502,0.02539,1785.1,1784.9,10.2674]
[1745800342898,0.02539,1785.1,1785.0,3.2078]
[1745800343099,1.14541,1785.1,1785.0,3.2078]
[1745800343310,9.93349,1785.1,1785.0,3.2078]
[1745800343510,11.05351,1785.1,1785.0,13.4752]
[1745800343906,11.05351,1785.1,1785.0,3.2078]
[1745800344109,1.12015,1784.9,1784.8,5.029]
[1745800344410,1.12027,1784.7,1784.6,3.2078]
[1745800344708,1.12034,1784.6,1784.5,15.3992]
[1745800344899,11.59194,1784.6,1784.5,15.3992]
[1745800345100,5.1874,1784.8,1784.5,15.3992]
[1745800345302,5.1874,1784.8,1784.5,16.51958]
[1745800345711,11.59188,1784.7,1784.6,3.2078]
[1745800346213,1.12016,1784.9,1784.6,4.32809]
[1745800346508,11.59172,1785.0,1784.7,11.49144]
[1745800346708,3.23319,1785.1,1784.8,1.12021]
[1745800346909,1.12009,1785.0,1784.9,10.1926]
[1745800347104,14.32165,1785.1,1784.9,10.1926]
[1745800347413,14.32165,1785.1,1784.9,15.2206]
[1745800347910,13.20159,1785.1,1784.9,16.34073]
[1745800348107,13.20159,1785.1,1784.9,15.2206]
[1745800348610,3.23319,1785.1,1784.9,15.2206]
[1745800348811,3.23319,1785.1,1785.0,1.12008]
[1745800349014,0.02539,1785.1,1785.0,11.31268]
[1745800349915,0.02539,1785.1,1785.0,16.32498]
[1745800350605,14.29612,1785.3,1785.0,16.32498]
[1745800351009,13.1762,1785.3,1785.0,15.2049]
[1745800351308,1.12002,1785.1,1785.0,10.1926]
[1745800351505,3.2078,1785.1,1784.4,5.027]
[1745800351710,1.1204,1784.5,1784.4,5.027]
[1745800352413,1.1204,1784.5,1784.4,15.2433]
[1745800352619,11.26147,1784.6,1784.4,15.2433]
[1745800352816,3.2078,1784.9,1784.4,16.36374]
[1745800353016,1.12034,1784.6,1784.4,16.36374]
[1745800353217,13.6101,1784.9,1784.4,15.2433]
[1745800353521,1.1204,1784.5,1784.4,5.027]
[1745800353818,1.12059,1784.2,1784.1,10.1094]
[1745800354016,1.12059,1784.2,1784.1,20.5398]
[1745800354220,1.12059,1784.2,1784.1,5.027]
[1745800354627,11.52289,1784.2,1784.1,5.027]
[1745800355117,1.12078,1783.9,1783.8,67.936]
[1745800355317,1.12078,1783.9,1783.8,5.027]
[1745800357719,10.218,1784.0,1783.6,9.518]
[1745800357920,1.1209,1783.7,1783.6,9.518]
[1745800358121,1.12096,1783.6,1783.5,5.027]
[1745800358318,11.33896,1783.6,1783.5,8.2348]
[1745800358712,11.33896,1783.6,1783.5,5.027]
[1745800359827,1.12106,1783.5,1783.3,13.1283]
[1745800360017,1.12106,1783.5,1783.4,9.9205]
[1745800360622,10.218,1783.6,1783.2,9.8325]
[1745800360816,1.12115,1783.3,1783.2,5.015]
[1745800361721,1.12115,1783.3,1783.2,14.9355]
[1745800361923,1.12122,1783.2,1783.1,3.2078]
[1745800362126,9.5432,1783.2,1783.1,3.2078]
[1745800363119,10.66442,1783.2,1783.1,12.8417]
[1745800363317,10.66442,1783.2,1783.1,3.2078]
[1745800363626,1.12153,1782.7,1782.6,3.2078]
[1745800363926,1.12144,1782.9,1782.6,4.32936]
[1745800364129,6.18263,1783.1,1782.8,1.12143]
[1745800364417,5.0613,1783.1,1782.9,9.6339]
[1745800364620,10.66454,1783.0,1782.9,9.6339]
[1745800365126,1.1214,1782.9,1782.8,3.2078]
[1745800365325,1.1214,1782.9,1782.8,12.748]
[1745800365820,5.0613,1783.1,1782.8,13.86945]
[1745800366119,1.12134,1783.0,1782.9,9.5402]
[1745800366524,1.12147,1782.8,1782.7,4.8335]
[1745800367518,1.12147,1782.8,1782.7,14.3737]
[1745800367720,9.8696,1783.0,1782.5,3.2078]
[1745800367721,1.12159,1782.6,1782.5,3.2078]
[1745800367921,1.12159,1782.6,1782.5,13.4415]
[1745800368127,1.12159,1782.6,1782.5,10.2337]
[1745800368429,1.12166,1782.5,1782.4,5.016]
[1745800368624,1.12184,1782.2,1782.1,3.2078]
[1745800368829,1.12184,1782.2,1782.1,8.2258]
[1745800369024,9.4665,1782.4,1782.1,8.2258]
[1745800369218,9.4665,1782.4,1782.2,1.12184]
[1745800369529,1.12182,1782.3,1782.1,5.018]
[1745800369836,1.12181,1782.3,1782.1,8.2258]
[1745800370029,10.58826,1782.4,1782.2,11.35554]
[1745800370228,9.4665,1782.4,1782.2,10.2337]
[1745800370431,8.2475,1782.6,1782.3,1.12173]
[1745800370730,1.12177,1782.4,1782.1,9.34767]
[1745800370929,1.12178,1782.3,1782.2,10.1638]
[1745800373329,6.0121,1782.4,1781.7,10.0771]
[1745800373533,1.12197,1782.0,1781.9,3.2078]
[1745800374435,1.12195,1782.1,1781.9,3.2078]
[1745800374635,1.12195,1782.1,1782.0,9.8332]
[1745800375537,1.12187,1782.2,1782.0,10.95515]
[1745800375731,8.2475,1782.6,1782.1,8.2268]
[1745800375937,4.32933,1782.8,1782.3,3.2078]
[1745800376233,4.32931,1782.8,1782.6,1.12159]
[1745800376439,1.12147,1782.8,1782.7,9.8332]
[1745800376731,11.14294,1782.9,1782.7,10.95473]
[1745800376938,1.12147,1782.8,1782.7,9.8332]
[1745800377236,10.0215,1782.9,1782.7,9.8332]
[1745800377737,1.12137,1783.0,1782.7,9.8332]
[1745800377929,13.1821,1783.2,1782.7,9.8332]
[1745800378133,15.98521,1783.2,1782.7,9.8332]
[1745800378327,1.12147,1782.8,1782.7,9.8332]
[1745800378724,1.12159,1782.6,1782.5,5.019]
[1745800378937,9.9743,1782.7,1782.5,16.56684]
[1745800379124,1.12152,1782.8,1782.6,1.12159]
[1745800379332,1.12147,1782.8,1782.7,10.4262]
[1745800379526,9.9743,1782.9,1782.7,10.4262]
[1745800379731,3.2078,1783.2,1782.7,14.75549]
[1745800379929,13.1821,1783.2,1782.7,11.54772]
[1745800380136,13.1821,1783.2,1782.8,1.12145]
[1745800380440,1.12134,1783.0,1782.9,9.9558]
[1745800381343,1.12159,1782.6,1782.5,8.2268]
[1745800382936,1.12159,1782.6,1782.5,5.019]
[1745800384045,3.2078,1782.8,1782.5,5.019]
[1745800384257,3.2078,1782.8,1782.6,10.0666]
[1745800384449,1.12153,1782.7,1782.6,10.0666]
[1745800384746,4.32931,1782.8,1782.6,11.18817]
[1745800385248,1.12153,1782.7,1782.6,10.0666]
[1745800385449,4.32931,1782.8,1782.6,10.0666]
[1745800385750,1.12153,1782.7,1782.6,10.0666]
[1745800385954,1.12159,1782.6,1782.5,5.019]
[1745800387649,9.7647,1782.7,1782.5,5.019]
[1745800387950,1.12159,1782.6,1782.5,5.019]
[1745800388745,3.2078,1782.8,1782.7,1.12153]
[1745800388947,1.12153,1782.7,1782.6,10.1377]
[1745800389343,11.56853,1782.7,1782.6,10.1377]
[1745800389544,1.12159,1782.6,1782.5,5.019]
[1745800389748,11.56857,1782.7,1782.5,8.2268]
[1745800390050,11.56857,1782.7,1782.6,9.8726]
[1745800391940,1.12159,1782.6,1782.5,5.019]
[1745800393235,1.12197,1782.0,1781.9,8.2158]
[1745800393442,1.12197,1782.0,1781.9,14.8534]
[1745800393844,11.58087,1782.0,1781.9,14.8534]
[1745800394044,0.41457197,1782.0,1781.9,15.97542]
[1745800394455,0.41457197,1782.0,1781.9,24.18322]
[1745800394652,1.1217,1782.5,1782.3,1.12177]
[1745800394854,1.1217,1782.5,1782.4,9.8454]
[1745800395450,5.1064,1782.6,1782.4,9.8454]
[1745800395649,1.12166,1782.5,1782.4,9.8454]
[1745800396453,11.41076,1782.5,1782.4,9.8454]
[1745800396651,1.12166,1782.5,1782.4,9.8454]
[1745800397150,1.12162,1782.6,1782.4,10.9671]
[1745800397448,3.2078,1782.7,1782.4,9.8454]
[1745800397644,1.12163,1782.6,1782.4,9.8454]
[1745800397846,3.2078,1782.7,1782.4,9.8454]
[1745800398047,4.32946,1782.5,1782.4,9.8454]
[1745800398248,1.12172,1782.4,1782.3,5.008]
[1745800398551,10.76062,1782.4,1782.3,5.008]
[1745800400155,3.2078,1784.1,1782.6,3.2078]
[1745800400457,5.1103,1784.1,1783.8,3.2078]
[1745800400653,10.75964,1784.0,1783.9,5.008]
[1745800400847,10.75961,1784.0,1783.9,5.008]
[1745800402658,9.6389,1784.0,1783.9,5.008]
[1745800403048,9.6389,1784.0,1783.9,15.371]
[1745800403249,10.75961,1784.0,1783.9,5.008]
[1745800403452,15.75961,1784.0,1783.9,5.008]
[1745800405354,9.6389,1784.0,1783.9,5.008]
[1745800405550,9.6389,1784.0,1783.9,6.12878]
[1745800405750,3.2078,1784.1,1784.0,1.12071]
[1745800405954,3.2078,1784.3,1784.2,1.12058]
[1745800406157,3.2078,1784.5,1784.4,1.12046]
[1745800406952,3.2078,1784.5,1784.4,6.12046]
[1745800407152,3.2078,1784.8,1784.7,1.12024]
[1745800407453,10.58759,1785.0,1784.7,5.006]
[1745800407652,10.58759,1785.0,1784.8,9.7642]
[1745800408553,9.4675,1785.0,1784.8,9.7642]
[1745800408860,10.58761,1785.0,1784.8,9.7642]
[1745800409059,10.58761,1785.0,1784.5,8.2203]
[1745800409060,14.4675,1785.0,1784.5,8.2203]
[1745800409355,1.12052,1784.3,1784.2,9.7642]
[1745800409550,1.12052,1784.3,1784.2,14.7692]
[1745800409747,1.12044,1784.5,1784.2,14.7692]
[1745800410152,3.2078,1784.6,1784.2,14.7692]
[1745800410347,1.12047,1784.4,1784.2,14.7692]
[1745800410552,3.2078,1784.6,1784.2,14.7692]
[1745800410761,1.12036,1784.6,1784.3,3.2078]
[1745800410955,1.12036,1784.6,1784.4,10.3979]
[1745800411459,11.22536,1784.6,1784.4,10.3979]
[1745800411763,1.1204,1784.5,1784.4,10.3979]
[1745800413162,10.105,1784.6,1784.4,10.3979]
[1745800413360,1.1203,1784.7,1784.4,10.3979]
[1745800413561,7.9994,1785.2,1784.5,3.2078]
[1745800413761,1.12019,1784.9,1784.6,14.5172]
[1745800413961,1.12019,1784.9,1784.7,9.5132]
[1745800414164,1.12019,1784.9,1784.8,5.004]
[1745800414165,1.1202,1784.9,1784.8,5.004]
[1745800414357,17.5648,1785.2,1784.8,5.004]
[1745800414558,1.11987,1785.4,1785.0,1.12003]
[1745800414756,3.23526,1785.5,1785.1,9.5132]
[1745800414965,1.11994,1785.3,1785.2,5.004]
[1745800415269,10.68527,1785.4,1785.2,5.004]
[1745800415459,10.68527,1785.4,1785.3,9.5132]
[1745800415854,14.5654,1785.4,1785.2,5.003]
[1745800416059,1.12008,1785.0,1784.9,8.0327]
[1745800416263,1.12008,1785.0,1784.9,5.003]
[1745800417064,10.3605,1785.2,1784.9,5.003]
[1745800417362,1.12008,1785.0,1784.9,5.003]
[1745800419182,1.12005,1785.1,1784.9,5.003]
[1745800419483,1.12002,1785.1,1785.0,9.789]
[1745800420275,1.12008,1785.0,1784.9,5.003]
[1745800420475,11.37288,1785.0,1784.9,5.003]
[1745800421876,1.12021,1784.8,1784.7,67.895]